bitfinex/quotes_BTCUSD_20250723
["timestamp","ask_amount","ask_price","bid_price","bid_amount"]
[1753276407288,0.58079571,118260.0,118250.0,0.36303852]
[1753276407492,0.58079571,118260.0,118250.0,0.36502852]
[1753276408398,0.17776571,118260.0,118250.0,0.36502852]
[1753276408566,0.16780673,118260.0,118250.0,0.42332852]
[1753276408764,0.16780673,118260.0,118250.0,0.8659417]
[1753276409014,0.00035771,118260.0,118250.0,1.22228758]
[1753276409395,0.00035771,118260.0,118250.0,0.8659417]
[1753276410645,0.00035771,118260.0,118250.0,0.50959582]
[1753276410842,0.00035771,118260.0,118250.0,0.7040717]
[1753276411059,0.00035771,118260.0,118250.0,0.8631117]
[1753276411814,0.00035771,118260.0,118250.0,0.8649017]
[1753276412481,0.00035771,118260.0,118250.0,0.7058617]
[1753276412686,0.00035771,118260.0,118250.0,1.1633617]
[1753276414030,0.00035771,118260.0,118250.0,1.15881314]
[1753276414923,0.00035771,118260.0,118250.0,0.80067726]
[1753276415137,0.00035771,118260.0,118250.0,1.15702314]
[1753276416257,0.00035771,118260.0,118250.0,0.64207726]
[1753276416481,0.03988754,118260.0,118250.0,0.65705996]
[1753276416706,0.05679892,118260.0,118250.0,0.49084381]
[1753276416917,0.05679892,118260.0,118250.0,0.64102758]
[1753276417145,0.06525479,118260.0,118250.0,0.65794011]
[1753276417365,0.04834312,118260.0,118250.0,0.66639626]
[1753276417584,0.05679885,118260.0,118250.0,0.64102758]
[1753276417798,0.26968598,118260.0,118250.0,0.2989]
[1753276418011,0.0259061,118240.0,118230.0,0.1946224]
[1753276418193,0.04281991,118240.0,118230.0,0.3550524]
[1753276418472,0.05127714,118240.0,118230.0,0.3550524]
[1753276418703,0.22888193,118240.0,118230.0,0.7029407]
[1753276418927,0.03436333,118240.0,118230.0,0.7029407]
[1753276419148,0.0343629,118240.0,118230.0,0.71139828]
[1753276419387,0.02590589,118240.0,118230.0,0.73687663]
[1753276419620,0.01744902,118240.0,118230.0,0.73687663]
[1753276419826,0.03436269,118240.0,118230.0,0.73687663]
[1753276420048,0.04281985,118240.0,118230.0,0.73687663]
[1753276420288,0.22042464,118240.0,118230.0,0.72941905]
[1753276420513,0.22888201,118240.0,118230.0,0.73787692]
[1753276420945,0.22042528,118240.0,118230.0,0.73887692]
[1753276421178,0.03436312,118240.0,118230.0,0.75579216]
[1753276421388,0.04282035,118240.0,118230.0,0.39714536]
[1753276421616,0.04281977,118240.0,118230.0,0.75349124]
[1753276421836,0.051277,118240.0,118230.0,0.75349124]
[1753276422497,0.01744902,118240.0,118230.0,0.75349124]
[1753276422747,0.01744902,118240.0,118230.0,0.81488124]
[1753276423254,0.01744902,118240.0,118230.0,0.84028524]
[1753276423891,0.15845508,118270.0,118250.0,0.19450229]
[1753276424103,0.91536453,118270.0,118260.0,0.18603042]
[1753276424333,0.90362465,118270.0,118260.0,0.20294151]
[1753276424571,0.49517,118270.0,118260.0,0.20493151]
[1753276424797,0.49,118270.0,118260.0,0.56127739]
[1753276425014,0.49,118270.0,118260.0,0.20493151]
[1753276425362,0.492,118270.0,118260.0,0.20493151]
[1753276425558,0.492,118270.0,118260.0,0.72511739]
[1753276425559,0.152,118270.0,118260.0,0.72511739]
[1753276425965,0.17144902,118270.0,118260.0,0.72511739]
[1753276426169,0.02144902,118270.0,118260.0,0.72511739]
[1753276426366,0.02144902,118270.0,118260.0,0.38461085]
[1753276426699,0.01944902,118270.0,118260.0,0.38461085]
[1753276426903,0.01844902,118270.0,118260.0,0.74095668]
[1753276427104,0.01944902,118270.0,118260.0,0.74095668]
[1753276427311,0.01934449,118270.0,118260.0,0.74095668]
[1753276427469,0.01934449,118270.0,118260.0,1.03985668]
[1753276428348,0.01934449,118270.0,118260.0,0.6835108]
[1753276428527,0.01934449,118270.0,118260.0,1.03985668]
[1753276429314,0.002,118270.0,118260.0,1.03985668]
[1753276429525,0.002,118270.0,118260.0,0.6835108]
[1753276429734,0.03071593,118270.0,118260.0,0.6835108]
[1753276429957,0.82433894,118270.0,118260.0,0.4617]
[1753276430187,0.815884,118270.0,118260.0,0.4617]
[1753276430588,1.215884,118270.0,118260.0,0.4617]
[1753276430996,0.815884,118270.0,118260.0,0.47015594]
[1753276431491,0.75165988,118270.0,118260.0,0.47015594]
[1753276431697,0.75165988,118270.0,118260.0,0.65618635]
[1753276431902,0.75165988,118270.0,118260.0,0.4617]
[1753276432328,0.75001909,118270.0,118260.0,0.4617]
[1753276432535,0.74953008,118270.0,118260.0,0.46118]
[1753276432751,0.83400738,118270.0,118260.0,0.46118]
[1753276433165,0.74953008,118270.0,118260.0,0.46118]
[1753276433590,0.89953008,118270.0,118260.0,0.16228]
[1753276434017,0.35349452,118250.0,118240.0,0.17759259]
[1753276434224,0.02537054,118240.0,118230.0,0.21779955]
[1753276434438,0.38833553,118250.0,118240.0,0.19451874]
[1753276434696,0.96806502,118250.0,118240.0,0.19451888]
[1753276434907,0.96806502,118250.0,118240.0,0.17760479]
[1753276435303,0.96806502,118250.0,118240.0,0.18806202]
[1753276435507,0.96806502,118250.0,118240.0,0.20390694]
[1753276435712,0.96806502,118250.0,118240.0,0.20490694]
[1753276435946,0.96806502,118250.0,118240.0,0.21336402]
[1753276436150,0.96806502,118250.0,118240.0,0.1975191]
[1753276437659,0.72804517,118250.0,118240.0,0.20796597]
[1753276437870,0.71744902,118250.0,118240.0,0.20596597]
[1753276438081,0.71744902,118250.0,118240.0,0.56543185]
[1753276438082,0.7259051,118250.0,118240.0,0.56543185]
[1753276438296,0.74281777,118250.0,118240.0,0.56231185]
[1753276438543,0.92040761,118250.0,118240.0,0.20596611]
[1753276438755,0.91395153,118250.0,118240.0,0.20596611]
[1753276438938,0.91697153,118250.0,118240.0,0.20596611]
[1753276439095,0.7478382,118250.0,118240.0,0.21442262]
[1753276439308,0.75629478,118250.0,118240.0,0.21442262]
[1753276439532,0.96400246,118250.0,118240.0,0.1870618]
[1753276439765,1.02430246,118250.0,118240.0,0.1870618]
[1753276440376,1.36430246,118250.0,118240.0,0.19551874]
[1753276440680,1.37275911,118250.0,118240.0,0.19551874]
[1753276440892,1.36430288,118250.0,118240.0,0.19551874]
[1753276441450,1.36430288,118250.0,118240.0,0.17860472]
[1753276441666,1.35584644,118250.0,118240.0,0.001]
[1753276441867,1.02341065,118250.0,118240.0,0.001]
[1753276442020,1.18321065,118250.0,118240.0,0.001]
[1753276443385,0.99545374,118240.0,118230.0,0.16164]
[1753276443588,0.6039109,118240.0,118230.0,0.3308018]
[1753276443832,0.6039109,118240.0,118230.0,0.16164]
[1753276443833,0.59201651,118240.0,118230.0,0.16164]
[1753276444893,0.21200046,118220.0,118210.0,0.18610841]
[1753276445113,0.05328308,118220.0,118210.0,0.35576486]
[1753276445327,0.03636569,118220.0,118210.0,0.65466486]
[1753276445568,0.0428242,118220.0,118210.0,0.65466486]
[1753276445997,0.03436569,118220.0,118210.0,0.35576486]
[1753276446225,0.03436562,118220.0,118210.0,0.35576486]
[1753276446577,0.01744902,118220.0,118210.0,0.35576486]
[1753276446798,0.03436569,118220.0,118210.0,0.35676486]
[1753276446996,0.03436569,118220.0,118210.0,0.71311074]
[1753276447559,0.01744902,118220.0,118210.0,0.71311074]
[1753276447765,0.01744902,118220.0,118210.0,0.41486486]
[1753276447766,0.02590725,118220.0,118210.0,0.41486486]
[1753276447970,0.03436562,118220.0,118210.0,0.77121074]
[1753276448169,0.04282406,118220.0,118210.0,0.74231074]
[1753276448370,0.03436562,118220.0,118210.0,0.74231074]
[1753276448545,0.02590725,118220.0,118210.0,0.74231074]
[1753276449277,0.02590725,118220.0,118210.0,0.38596486]
[1753276449504,0.01744902,118220.0,118210.0,0.50366216]
[1753276449713,0.0084568,118240.0,118230.0,0.19453519]
[1753276449714,0.0428197,118240.0,118230.0,0.19453519]
[1753276449945,0.01744902,118240.0,118230.0,0.55287107]
[1753276450356,0.01744902,118240.0,118230.0,0.55599107]
[1753276450562,0.42013167,118260.0,118250.0,0.186046]
[1753276450771,0.24058704,118260.0,118250.0,0.36199838]
[1753276450978,0.50891081,118260.0,118250.0,0.36398838]
[1753276451215,0.02536625,118260.0,118250.0,0.73616493]
[1753276451441,0.03435969,118260.0,118250.0,0.73616493]
[1753276451843,0.05176405,118260.0,118250.0,0.73616493]
[1753276452079,0.05276398,118260.0,118250.0,0.37981905]
[1753276452283,0.04430847,118260.0,118250.0,0.37981905]
[1753276452512,0.04630847,118260.0,118250.0,0.37981905]
[1753276452731,0.06321985,118260.0,118250.0,0.37933858]
[1753276452943,0.05476405,118260.0,118250.0,0.37933858]
[1753276453152,0.05376405,118260.0,118250.0,0.37933858]
[1753276453567,0.05476405,118260.0,118250.0,0.37933858]
[1753276453802,0.06321978,118260.0,118250.0,0.37933858]
[1753276454020,0.06322035,118260.0,118250.0,0.37088243]
[1753276454225,0.23233981,118260.0,118250.0,0.37088243]
[1753276454431,0.22388437,118260.0,118250.0,0.37088243]
[1753276454641,0.22188437,118260.0,118250.0,0.3624262]
[1753276454850,0.22288437,118260.0,118250.0,0.3624262]
[1753276455300,0.22288437,118260.0,118250.0,0.0178202]
[1753276455301,0.20797306,118260.0,118250.0,0.0178202]
[1753276455508,0.21099306,118260.0,118250.0,0.35345004]
[1753276455716,0.21099306,118260.0,118250.0,0.19541004]
[1753276455924,0.58508817,118260.0,118250.0,0.35333004]
[1753276456539,0.58508817,118260.0,118250.0,0.18419685]
[1753276456978,0.58508817,118260.0,118250.0,0.35333004]
[1753276457194,0.58508817,118260.0,118250.0,0.34487339]
[1753276457415,0.60034798,118260.0,118250.0,0.0158302]
[1753276457628,0.66914106,118260.0,118250.0,0.0158302]
[1753276457839,1.52288694,118260.0,118250.0,0.0158302]
[1753276458054,0.85101836,118260.0,118250.0,0.0158302]
[1753276458260,0.85097836,118260.0,118250.0,0.0158302]
[1753276458469,0.98571855,118260.0,118250.0,0.0158302]
[1753276458929,0.98555855,118260.0,118250.0,0.0158302]
[1753276459581,0.82835855,118260.0,118250.0,0.0158302]
[1753276459794,0.64555855,118260.0,118250.0,0.0158302]
[1753276460448,0.56092125,118260.0,118250.0,0.0158302]
[1753276461952,0.72987585,118260.0,118250.0,0.0158302]
[1753276462370,0.72977946,118260.0,118250.0,0.0158302]
[1753276463619,0.64530216,118260.0,118250.0,0.0158302]
[1753276465334,0.62785314,118260.0,118250.0,0.0158302]
[1753276468572,0.34451874,118240.0,118230.0,0.34219653]
[1753276468779,0.34451874,118240.0,118230.0,0.36010662]
[1753276469000,0.34451874,118240.0,118230.0,0.35164882]
[1753276469229,0.33606187,118240.0,118230.0,0.36010676]
[1753276469445,0.73819187,118240.0,118230.0,0.36010676]
[1753276469653,0.73819187,118240.0,118230.0,0.35279447]
[1753276469864,0.73819187,118240.0,118230.0,0.35379447]
[1753276470076,0.73819187,118240.0,118230.0,0.3632522]
[1753276470528,0.73819187,118240.0,118230.0,0.34633667]
[1753276470762,0.72973479,118240.0,118230.0,0.33787873]
[1753276470977,0.20300989,118220.0,118210.0,0.28007772]
[1753276471190,0.19668173,118220.0,118210.0,0.18824884]
[1753276471402,0.33296477,118220.0,118210.0,0.32371042]
[1753276471617,0.32450611,118220.0,118210.0,0.33216994]
[1753276471837,0.32450611,118220.0,118210.0,0.34062938]
[1753276472271,0.32450611,118220.0,118210.0,0.15456743]
[1753276472485,0.32450611,118220.0,118210.0,0.33221737]
[1753276473392,0.32450611,118220.0,118210.0,0.15456743]
[1753276473607,0.32450611,118220.0,118210.0,0.32375785]
[1753276473813,0.32450611,118220.0,118210.0,0.34067674]
[1753276474023,0.32450611,118220.0,118210.0,0.35759513]
[1753276474024,0.3414235,118220.0,118210.0,0.35759513]
[1753276474237,0.17224739,118220.0,118210.0,0.36605415]
[1753276474456,0.34051356,118220.0,118210.0,0.35973513]
[1753276474639,0.17133745,118220.0,118210.0,0.36819415]
[1753276474892,0.34362624,118220.0,118210.0,0.3597352]
[1753276475036,0.34362624,118220.0,118210.0,0.35127604]
[1753276475259,0.74362624,118220.0,118210.0,0.34281674]
[1753276475438,0.74362624,118220.0,118210.0,0.35127604]
[1753276475858,0.74362624,118220.0,118210.0,0.35973527]
[1753276476518,0.34362624,118220.0,118210.0,0.35973527]
[1753276477559,0.34362624,118220.0,118210.0,0.36819443]
[1753276478748,0.34362624,118220.0,118210.0,0.35973527]
[1753276479087,0.34042624,118220.0,118210.0,0.36819443]
[1753276479286,0.34042624,118220.0,118210.0,0.368194]
[1753276480106,0.34042624,118220.0,118210.0,0.32589785]
[1753276480304,0.33516765,118220.0,118210.0,0.15670743]
[1753276480508,0.32670885,118220.0,118210.0,0.15456743]
[1753276480708,0.41118615,118220.0,118210.0,0.15456743]
[1753276480929,0.44048615,118220.0,118210.0,0.15456743]
[1753276481155,0.47038615,118220.0,118210.0,0.15456743]
[1753276481365,0.38590885,118220.0,118210.0,0.15456743]
[1753276483370,0.32670885,118220.0,118210.0,0.33221722]
[1753276483773,0.0369466,118220.0,118210.0,0.76622135]
[1753276483993,0.61458151,118220.0,118210.0,0.35425561]
[1753276484126,0.42002935,118220.0,118210.0,0.36271463]
[1753276484328,0.4,118220.0,118210.0,0.79510953]
[1753276484711,0.17847769,118250.0,118240.0,0.18606187]
[1753276484893,0.17847769,118250.0,118240.0,0.70632462]
[1753276485109,0.02002125,118250.0,118240.0,0.70632462]
[1753276485315,0.06110067,118250.0,118240.0,0.69786775]
[1753276485724,0.20264402,118250.0,118240.0,0.34997874]
[1753276485942,0.21110103,118250.0,118240.0,0.34997874]
[1753276486155,0.20264445,118250.0,118240.0,0.34997874]
[1753276486360,0.04618794,118250.0,118240.0,0.34997874]
[1753276486558,0.0357315,118250.0,118240.0,0.34997874]
[1753276486772,0.04418794,118250.0,118240.0,0.35295874]
[1753276486972,0.04518794,118250.0,118240.0,0.35295874]
[1753276487325,0.05364445,118250.0,118240.0,0.35295874]
[1753276487522,0.18673121,118250.0,118240.0,0.35295874]
[1753276487722,0.19518751,118250.0,118240.0,0.35295874]
[1753276487917,0.16671003,118250.0,118240.0,0.43060776]
[1753276488131,0.16671003,118250.0,118240.0,0.78695364]
[1753276488762,0.17516611,118250.0,118240.0,0.78695364]
[1753276489531,0.16671003,118250.0,118240.0,0.78695364]
[1753276489736,0.01671003,118250.0,118240.0,0.78695364]
[1753276490593,0.01771003,118250.0,118240.0,0.78695364]
[1753276490935,0.02616611,118250.0,118240.0,0.78695364]
[1753276491285,0.02616604,118250.0,118240.0,0.78695364]
[1753276491900,0.01771003,118250.0,118240.0,0.78695364]
[1753276492103,0.02616604,118250.0,118240.0,0.78695364]
[1753276492332,0.02616968,118250.0,118240.0,0.78695364]
[1753276492677,0.03462583,118250.0,118240.0,0.78695364]
[1753276493744,0.01771367,118250.0,118240.0,0.78695364]
[1753276493890,0.03462591,118250.0,118240.0,0.43060776]
[1753276494303,0.04308221,118250.0,118240.0,0.43060776]
[1753276494501,0.03462591,118250.0,118240.0,0.40140776]
[1753276494734,0.04308235,118250.0,118240.0,0.40140776]
[1753276494926,0.05153886,118250.0,118240.0,0.40140776]
[1753276495207,0.27312712,118250.0,118240.0,0.17128749]
[1753276495392,0.26787111,118250.0,118240.0,0.33770202]
[1753276495586,0.05686932,118250.0,118240.0,0.35461597]
[1753276495828,0.23445916,118250.0,118240.0,0.35675597]
[1753276496075,0.22280293,118250.0,118240.0,0.35675597]
[1753276496207,0.22280293,118250.0,118240.0,0.34829903]
[1753276496408,0.22280293,118250.0,118240.0,0.35675597]
[1753276496614,0.21434649,118250.0,118240.0,0.34829903]
[1753276497530,0.17760465,118240.0,118230.0,0.50914941]
[1753276497732,0.21237288,118240.0,118230.0,0.53708644]
[1753276497937,0.21237288,118240.0,118230.0,0.69670438]
[1753276498148,0.36237288,118240.0,118230.0,0.70516225]
[1753276498351,0.36237288,118240.0,118230.0,0.71362005]
[1753276498581,0.36237288,118240.0,118230.0,0.72207778]
[1753276499387,0.36237288,118240.0,118230.0,0.57091778]
[1753276499636,0.35706572,118240.0,118230.0,0.70281225]
[1753276499852,0.35706572,118240.0,118230.0,0.55197225]
[1753276500015,0.35706572,118240.0,118230.0,0.71127005]
[1753276500817,0.35706572,118240.0,118230.0,0.71972778]
[1753276501211,0.40660842,118240.0,118230.0,0.3198018]
[1753276501423,0.39815105,118240.0,118230.0,0.32825989]
[1753276501638,0.38243749,118240.0,118230.0,0.15064]
[1753276501840,0.79815501,118240.0,118230.0,0.15064]
[1753276502276,0.35301003,118220.0,118210.0,0.52615638]
[1753276502492,0.18597378,118220.0,118210.0,0.70193393]
[1753276502701,0.34984173,118220.0,118210.0,0.70449498]
[1753276503131,0.34138336,118220.0,118210.0,0.67858681]
[1753276503346,0.34138336,118220.0,118210.0,0.69603583]
[1753276503602,0.35492513,118220.0,118210.0,0.7074952]
[1753276503822,0.17220725,118220.0,118210.0,0.70896457]
[1753276504032,0.18912478,118220.0,118210.0,0.71795414]
[1753276504255,0.18912478,118220.0,118210.0,0.72441281]
[1753276504482,0.18066598,118220.0,118210.0,0.72141281]
[1753276504693,0.18066598,118220.0,118210.0,0.72341281]
[1753276504923,0.35830089,118220.0,118210.0,0.72341281]
[1753276505155,0.42604841,118220.0,118210.0,0.69803554]
[1753276505569,0.42604841,118220.0,118210.0,0.70649477]
[1753276505774,0.41758982,118220.0,118210.0,0.70649477]
[1753276505985,0.41758982,118220.0,118210.0,0.71495393]
[1753276506210,0.46623116,118220.0,118210.0,0.50989645]
[1753276506408,0.46623116,118220.0,118210.0,0.68754639]
[1753276506651,0.45777243,118220.0,118210.0,0.50989645]
[1753276506869,0.45777243,118220.0,118210.0,0.16989645]
[1753276507306,0.45777243,118220.0,118210.0,0.16889645]
[1753276507539,0.45777243,118220.0,118210.0,0.16789645]
[1753276507751,0.45777243,118220.0,118210.0,0.15044743]
[1753276507963,0.54224973,118220.0,118210.0,0.15044743]
[1753276508830,0.54224973,118220.0,118210.0,4.743e-05]
[1753276509033,0.89859561,118220.0,118210.0,4.743e-05]
[1753276509238,0.54224973,118220.0,118210.0,4.743e-05]
[1753276510530,0.62650221,118220.0,118210.0,4.743e-05]
[1753276510754,0.47650221,118220.0,118210.0,4.743e-05]
[1753276510965,0.46804341,118220.0,118210.0,4.743e-05]
[1753276511238,0.38556611,118220.0,118210.0,4.743e-05]
[1753276511447,0.38556611,118220.0,118210.0,0.01749645]
[1753276511660,0.38556611,118220.0,118210.0,0.20360583]
[1753276511864,0.38556611,118220.0,118210.0,0.2120652]
[1753276512078,0.38556611,118220.0,118210.0,0.20360583]
[1753276512286,0.38556611,118220.0,118210.0,0.03441541]
[1753276512503,0.38556611,118220.0,118210.0,0.20360583]
[1753276513090,0.38556611,118220.0,118210.0,0.2120652]
[1753276513493,0.44104015,118220.0,118210.0,0.2120652]
[1753276513990,0.27186404,118220.0,118210.0,0.2205245]
[1753276514196,0.23330695,118220.0,118210.0,0.22898366]
[1753276514491,0.24176533,118220.0,118210.0,0.22052407]
[1753276514691,0.23330667,118220.0,118210.0,0.22898309]
[1753276515099,0.23330667,118220.0,118210.0,0.37942309]
[1753276515330,0.17620667,118220.0,118210.0,0.37942309]
[1753276515854,0.004,118220.0,118210.0,0.38145309]
[1753276516445,0.154,118220.0,118210.0,0.38145309]
[1753276516659,0.004,118220.0,118210.0,0.38145309]
[1753276516868,0.01245816,118220.0,118210.0,0.38145309]
[1753276517067,0.16245816,118220.0,118210.0,0.38145309]
[1753276517256,0.17091646,118220.0,118210.0,0.38145309]
[1753276517616,0.16245816,118220.0,118210.0,0.38145309]
[1753276517834,0.004,118220.0,118210.0,0.38145309]
[1753276518583,0.004,118220.0,118210.0,0.79832897]
[1753276518792,0.004,118220.0,118210.0,0.44198309]
[1753276519640,0.01245816,118220.0,118210.0,0.38145309]
[1753276519839,0.004,118220.0,118210.0,0.38145309]
[1753276521005,0.002,118220.0,118210.0,0.38145309]
[1753276521213,0.002,118220.0,118210.0,0.74586718]
[1753276521434,0.0104583,118220.0,118210.0,0.38145309]
[1753276521653,0.00414,118220.0,118210.0,0.38145309]
[1753276522069,0.01259816,118220.0,118210.0,0.38145309]
[1753276522274,0.00414,118220.0,118210.0,0.38145309]
[1753276522482,0.002,118220.0,118210.0,0.74586718]
[1753276522913,0.002,118220.0,118210.0,1.14739718]
[1753276523554,0.15,118230.0,118220.0,0.21200067]
[1753276523783,0.15,118230.0,118220.0,0.57844476]
[1753276524002,0.17537318,118230.0,118220.0,0.20557237]
[1753276524221,0.4315916,118230.0,118220.0,0.56998661]
[1753276524422,0.4347416,118230.0,118220.0,0.5784452]
[1753276524599,0.4347416,118230.0,118220.0,0.22248962]
[1753276524746,0.16691567,118230.0,118220.0,0.22248962]
[1753276524955,0.34767548,118230.0,118220.0,0.20557238]
[1753276525171,0.16791524,118230.0,118220.0,0.28321919]
[1753276525371,0.17637304,118230.0,118220.0,0.22551919]
[1753276525590,0.18483098,118230.0,118220.0,0.22248919]
[1753276525791,0.35399328,118230.0,118220.0,0.21403089]
[1753276525990,0.35610328,118230.0,118220.0,0.2309477]
[1753276526173,0.35710328,118230.0,118220.0,0.2309477]
[1753276526408,0.18794148,118230.0,118220.0,0.23094734]
[1753276526574,0.19512901,118230.0,118220.0,0.23094734]
[1753276526929,0.20358702,118230.0,118220.0,0.23094734]
[1753276527456,0.38120691,118230.0,118220.0,0.22248904]
[1753276527748,0.38120691,118230.0,118220.0,0.23094734]
[1753276527901,0.21204511,118230.0,118220.0,0.23094734]
[1753276528516,0.19639957,118230.0,118220.0,0.23094734]
[1753276528722,0.36556137,118230.0,118220.0,0.23094734]
[1753276528922,0.16891553,118230.0,118220.0,0.23094734]
[1753276529301,0.18583134,118230.0,118220.0,0.23094734]
[1753276530191,0.1773734,118230.0,118220.0,0.23094734]
[1753276530398,0.18583134,118230.0,118220.0,0.23094734]
[1753276530800,0.19428935,118230.0,118220.0,0.23094734]
[1753276531017,0.36345115,118230.0,118220.0,0.23094734]
[1753276531220,0.47927324,118230.0,118220.0,0.01947902]
[1753276531436,0.48241324,118230.0,118220.0,0.01947902]
[1753276531636,0.48241324,118230.0,118220.0,0.01744902]
[1753276531886,0.4739553,118230.0,118220.0,0.16500902]
[1753276532511,0.4009279,118230.0,118220.0,0.34264393]
[1753276533344,0.4009279,118230.0,118220.0,0.16500902]
[1753276533555,0.4009279,118230.0,118220.0,0.01744902]
[1753276533672,0.4009279,118230.0,118220.0,0.16500902]
[1753276534678,0.4009279,118230.0,118220.0,0.01744902]
[1753276534863,0.38533477,118220.0,118210.0,0.14712743]
[1753276535061,0.38744477,118220.0,118210.0,0.16457645]
[1753276535270,0.79058477,118220.0,118210.0,0.16457645]
[1753276535900,0.39058477,118220.0,118210.0,0.16457645]
[1753276536361,0.79058477,118220.0,118210.0,0.16457645]
[1753276537479,0.82281956,118220.0,118210.0,0.16457645]
[1753276539470,0.90729686,118220.0,118210.0,0.14644743]
[1753276539686,0.65369686,118220.0,118210.0,4.743e-05]
[1753276540229,1.34948833,118220.0,118210.0,4.743e-05]
[1753276540962,1.35148833,118220.0,118210.0,4.743e-05]
[1753276542224,1.35448833,118220.0,118210.0,4.743e-05]
[1753276542780,0.97006207,118220.0,118210.0,4.743e-05]
[1753276542969,0.67006207,118220.0,118210.0,4.743e-05]
[1753276543187,0.97006207,118220.0,118210.0,4.743e-05]
[1753276543850,0.82006207,118220.0,118210.0,4.743e-05]
[1753276544067,0.33852066,118220.0,118210.0,4.743e-05]
[1753276544277,0.71694891,118220.0,118210.0,4.743e-05]
[1753276544490,0.32806207,118220.0,118210.0,0.16923785]
[1753276544699,0.1768032,118220.0,118210.0,0.16923785]
[1753276544915,0.3183444,118220.0,118210.0,0.17769729]
[1753276545127,0.30090313,118220.0,118210.0,0.18615681]
[1753276545351,0.30090313,118220.0,118210.0,0.17769737]
[1753276545560,0.37938043,118220.0,118210.0,0.18615681]
[1753276545770,0.54855654,118220.0,118210.0,0.16923785]
[1753276545958,0.55055654,118220.0,118210.0,0.17769737]
[1753276546212,0.55901534,118220.0,118210.0,0.16923785]
[1753276546419,0.56101534,118220.0,118210.0,0.16923785]
[1753276546889,0.56101534,118220.0,118210.0,0.17769737]
[1753276547097,0.17302667,118220.0,118210.0,0.21414513]
[1753276547313,0.154,118220.0,118210.0,0.21414513]
[1753276547529,0.154,118220.0,118210.0,0.37922338]
[1753276547734,0.154,118220.0,118210.0,0.44094338]
[1753276548398,0.16245816,118220.0,118210.0,0.44094338]
[1753276549043,0.17091653,118220.0,118210.0,0.43248436]
[1753276549275,0.16245816,118220.0,118210.0,0.44094295]
[1753276549488,0.16245823,118220.0,118210.0,0.44094295]
[1753276549908,0.1709166,118220.0,118210.0,0.42402484]
[1753276550128,0.44671468,118220.0,118210.0,0.33484687]
[1753276550341,0.43825674,118220.0,118210.0,0.16525645]
[1753276551670,0.67045404,118220.0,118210.0,4.743e-05]
[1753276551915,1.17624551,118220.0,118210.0,4.743e-05]
[1753276552591,1.51624551,118220.0,118210.0,4.743e-05]
[1753276554299,1.66624551,118220.0,118210.0,4.743e-05]
[1753276560141,1.51852551,118220.0,118210.0,4.743e-05]
[1753276560418,1.66500551,118220.0,118210.0,4.743e-05]
[1753276561171,1.01273404,118220.0,118210.0,4.743e-05]
[1753276561376,1.15917404,118220.0,118210.0,4.743e-05]
[1753276561812,1.52372439,118220.0,118210.0,4.743e-05]
[1753276563234,1.51527553,118220.0,118210.0,4.743e-05]
[1753276564910,1.15917404,118220.0,118210.0,4.743e-05]
[1753276565080,1.53100984,118220.0,118210.0,4.743e-05]
[1753276565750,1.53100907,118220.0,118210.0,4.743e-05]
[1753276566546,1.17290758,118220.0,118210.0,4.743e-05]
[1753276566733,1.52700907,118220.0,118210.0,4.743e-05]
[1753276566939,1.53000907,118220.0,118210.0,4.743e-05]
[1753276567082,1.51427553,118220.0,118210.0,4.743e-05]
[1753276567281,1.53000795,118220.0,118210.0,4.743e-05]
[1753276568299,1.68000795,118220.0,118210.0,4.743e-05]
[1753276568720,1.68400795,118220.0,118210.0,4.743e-05]
[1753276569126,1.32790646,118220.0,118210.0,4.743e-05]
[1753276569336,1.68400795,118220.0,118210.0,4.743e-05]
[1753276569695,0.48614044,118190.0,118180.0,0.08507656]
[1753276569896,0.65708504,118190.0,118180.0,0.08512274]
[1753276570295,0.66019504,118190.0,118180.0,0.08512274]
[1753276572262,0.6642501,118190.0,118180.0,0.0174952]
[1753276572504,1.56489159,118190.0,118180.0,0.0174952]
[1753276572834,1.56489159,118190.0,118180.0,4.618e-05]
[1753276573616,0.17774001,118150.0,118140.0,0.0288]
[1753276573830,0.64244021,118150.0,118140.0,0.0309]
[1753276574041,0.64244021,118150.0,118140.0,0.0195952]
[1753276574042,0.72890751,118150.0,118140.0,0.0195952]
[1753276574267,0.87841751,118150.0,118140.0,0.00214618]
[1753276574487,0.47841751,118150.0,118140.0,0.0195952]
[1753276574705,0.47841751,118150.0,118140.0,4.618e-05]
[1753276575145,0.62841751,118150.0,118140.0,4.618e-05]
[1753276575588,0.62841751,118150.0,118140.0,0.24169131]
[1753276575589,0.25140457,118150.0,118140.0,0.24169131]
[1753276575814,0.25140385,118150.0,118140.0,0.27060457]
[1753276576045,0.65140392,118150.0,118140.0,0.63217009]
[1753276576254,0.55,118150.0,118140.0,0.2760686]
[1753276576467,0.40846317,118150.0,118140.0,0.2800686]
[1753276576893,0.01692655,118150.0,118140.0,0.2800686]
[1753276577122,0.01692648,118150.0,118140.0,0.2800686]
[1753276577326,0.02539015,118150.0,118140.0,0.2800686]
[1753276577552,0.01692648,118150.0,118140.0,0.2800686]
[1753276577955,0.00846317,118150.0,118140.0,0.2800686]
[1753276578198,0.01692641,118150.0,118140.0,0.2800686]
[1753276578414,0.02538979,118150.0,118140.0,0.2800686]
[1753276579048,0.15,118160.0,118150.0,0.22477634]
[1753276579263,0.15,118160.0,118150.0,0.24380375]
[1753276579478,0.24293989,118160.0,118150.0,0.24699375]
[1753276579721,0.26832868,118160.0,118150.0,0.23006634]
[1753276580372,0.24393989,118160.0,118150.0,0.24699346]
[1753276580574,0.25240256,118160.0,118150.0,0.23853001]
[1753276580779,0.30829385,118160.0,118150.0,0.24699346]
[1753276581009,0.30829385,118160.0,118150.0,0.27290579]
[1753276581010,0.001,118160.0,118150.0,0.27290579]
[1753276581652,0.01792497,118160.0,118150.0,0.26444248]
[1753276581850,0.02638771,118160.0,118150.0,0.25597903]
[1753276582030,0.02638771,118160.0,118150.0,0.27290601]
[1753276582279,0.01792497,118160.0,118150.0,0.27290594]
[1753276582500,0.02638764,118160.0,118150.0,0.27290594]
[1753276582705,0.01792497,118160.0,118150.0,0.28136925]
[1753276583083,0.001,118160.0,118150.0,0.28136925]
[1753276583273,0.00946259,118160.0,118150.0,0.28136925]
[1753276583591,0.00946259,118160.0,118150.0,0.27290594]
[1753276583792,0.00946259,118160.0,118150.0,0.27290601]
[1753276583966,0.44834342,118160.0,118150.0,0.27290601]
[1753276584180,0.43988075,118160.0,118150.0,0.2898327]
[1753276584376,0.44834356,118160.0,118150.0,0.2898327]
[1753276584584,0.44834349,118160.0,118150.0,0.2898327]
[1753276584789,0.44834349,118160.0,118150.0,0.28136939]
[1753276584998,0.44834342,118160.0,118150.0,0.2898327]
[1753276585636,0.43988075,118160.0,118150.0,0.2898327]
[1753276585759,0.44834328,118160.0,118150.0,0.2898327]
[1753276585967,0.43988061,118160.0,118150.0,0.2898327]
[1753276586190,0.401,118160.0,118150.0,0.2898327]
[1753276586389,0.40946259,118160.0,118150.0,0.2898327]
[1753276586588,0.401,118160.0,118150.0,0.64593419]
[1753276586966,0.001,118160.0,118150.0,0.2898327]
[1753276587419,0.401,118160.0,118150.0,0.2898327]
[1753276588194,0.001,118160.0,118150.0,0.2898327]